bitfinex/quotes_SOLUSD_20240703
["timestamp","ask_amount","ask_price","bid_price","bid_amount"]
[1719972662085,23.31,151.94,151.84,6.3638]
[1719972662381,6.5827,151.92,151.84,6.3638]
[1719972662560,23.32603975,151.98,151.84,6.3638]
[1719972662876,6.5811,151.95,151.89,6.5833]
[1719972663175,6.5815,151.94,151.9,0.34]
[1719972663377,43.11,151.97,151.9,0.34]
[1719972663378,6.582,151.93,151.9,0.34]
[1719972663556,6.5816,151.94,151.89,0.34]
[1719972665362,6.5819,151.93,151.89,0.34]
[1719972665559,6.5825,151.92,151.87,6.5845]
[1719972665781,6.5831,151.91,151.85,21.7844]
[1719972665982,6.5833,151.9,151.85,21.7844]
[1719972666168,6.5828,151.91,151.86,6.5848]
[1719972666775,6.5833,151.9,151.85,21.7847]
[1719972667285,6.5822,151.93,151.88,6.584]
[1719972667471,23.31,151.94,151.89,6.5836]
[1719972667773,23.31,151.94,151.85,15.1994]
[1719972667985,23.31,151.94,151.85,18.0065714]
[1719972668160,29.8906,151.97,151.91,6.5824]
[1719972668358,6.5807,151.96,151.92,0.17]
[1719972669076,29.8903,151.97,151.91,6.7527]
[1719972669256,6.87633975,151.98,151.92,0.17]
[1719972669457,6.5794,151.99,151.93,6.5819]
[1719972669655,6.5798,151.98,151.94,0.34]
[1719972669866,6.5794,151.99,151.94,0.34]
[1719972670072,6.5794,151.99,151.94,6.9214]
[1719972670283,29.8886,152.01,151.95,6.581]
[1719972670472,29.8886,152.01,151.96,0.17]
[1719972670778,29.8886,152.01,151.96,0.34]
[1719972671865,6.5786,152.01,151.96,0.34]
[1719972672183,6.5794,151.99,151.96,0.34]
[1719972672486,6.579,152.0,151.95,0.34]
[1719972672791,6.5788,152.01,151.95,6.9209]
[1719972673082,19.8,152.03,151.95,6.9209]
[1719972673283,6.5789,152.0,151.95,0.34]
[1719972673456,6.5789,152.0,151.95,6.921]
[1719972673887,6.5786,152.01,151.95,6.921]
[1719972674057,13.45337125,152.04,151.95,0.34]
[1719972674260,38.00619108,152.08,151.93,15.3912]
[1719972674261,6.4399,152.08,151.99,6.579]
[1719972674461,6.5771,152.05,152.0,0.17]
[1719972674656,6.5771,152.05,152.0,0.34]
[1719972675384,6.5769,152.05,152.0,6.9188]
[1719972675576,16.4367,152.1,152.0,0.34]
[1719972675778,16.4367,152.1,152.01,6.5782]
[1719972676086,16.4367,152.1,152.02,0.34]
[1719972676295,19.8,152.09,152.02,0.34]
[1719972676596,19.8,152.09,152.02,0.17]
[1719972676761,19.8,152.09,152.01,0.34]
[1719972677884,6.5764,152.06,152.01,6.9184]
[1719972678181,36.2367,152.1,152.02,6.578]
[1719972678387,36.2367,152.1,152.03,0.17]
[1719972679114,28.25786523,152.11,152.01,6.7484]
[1719972679115,13.05826523,152.11,152.02,0.17]
[1719972679294,13.05826523,152.11,152.01,0.17]
[1719972679295,6.5743,152.11,152.05,6.5767]
[1719972679515,6.5746,152.1,152.06,0.17]
[1719972679663,6.5752,152.09,152.06,0.17]
[1719972680382,6.5766,152.06,152.0,15.8991]
[1719972680588,6.576,152.07,152.01,6.5784]
[1719972681177,19.8,152.07,152.0,15.8991]
[1719972681373,19.8,152.07,151.99,6.6159]
[1719972681572,19.8,152.07,151.96,16.2401]
[1719972681573,19.8,152.07,151.96,22.8204]
[1719972681794,6.5778,152.03,151.97,6.5801]
[1719972682169,6.5781,152.02,151.97,6.5801]
[1719972682369,6.5786,152.01,151.96,22.8206]
[1719972682580,19.8,152.05,151.96,22.8206]
[1719972682581,6.5789,152.0,151.96,16.2401]
[1719972682983,6.5785,152.01,151.96,16.2401]
[1719972683583,19.8,152.05,151.96,16.2401]
[1719972683779,6.5776,152.04,151.96,16.2401]
[1719972683986,15.9239,152.08,151.96,16.2401]
[1719972684192,6.5771,152.05,151.99,6.5792]
[1719972684873,6.5773,152.04,152.0,0.34]
[1719972685073,6.5773,152.04,151.99,0.34]
[1719972685297,6.5767,152.05,151.99,6.9192]
[1719972685593,19.8,152.06,151.99,0.34]
[1719972685902,6.5773,152.04,151.99,6.9193]
[1719972686071,6.5768,152.05,152.0,6.5789]
[1719972686272,6.5764,152.06,152.01,0.34]
[1719972686473,6.5773,152.04,152.01,0.34]
[1719972687072,6.5773,152.04,152.01,0.17]
[1719972688196,6.5768,152.05,152.01,0.17]
[1719972688902,19.8,152.1,152.01,0.17]
[1719972689078,19.8,152.1,152.02,6.5777]
[1719972689278,19.8,152.1,152.03,0.34]
[1719972689879,6.5768,152.05,152.03,0.17]
[1719972690090,6.5768,152.05,152.02,6.5777]
[1719972691089,6.5751,152.09,152.03,6.5776]
[1719972691410,6.5751,152.09,152.04,0.34]
[1719972692708,35.6415,152.12,152.04,0.34]
[1719972692709,6.5756,152.08,152.04,0.34]
[1719972692892,6.5751,152.09,152.04,0.34]
[1719972693101,6.5743,152.11,152.05,6.5767]
[1719972693311,6.5743,152.11,152.06,0.34]
[1719972693519,42.5117,152.16,152.06,6.9162]
[1719972693707,6.574,152.12,152.07,6.5758]
[1719972693911,6.574,152.12,152.08,0.34]
[1719972694513,6.5732,152.14,152.09,6.4296]
[1719972694709,16.4262,152.2,152.1,0.34]
[1719972695009,23.3,152.18,152.11,16.6074]
[1719972695218,23.3,152.18,152.12,0.17]
[1719972695423,6.5729,152.14,152.12,0.17]
[1719972695726,6.5733,152.13,152.12,0.34]
[1719972696218,6.5733,152.13,152.12,0.17]
[1719972696393,6.5746,152.1,152.07,15.4458]
[1719972696596,6.5746,152.1,152.08,0.34]
[1719972696795,6.5742,152.11,152.08,0.34]
[1719972697529,16.4306,152.16,152.08,0.34]
[1719972697812,32.8543,152.19,152.08,0.34]
[1719972697813,23.3,152.17,152.08,0.34]
[1719972698119,6.5727,152.15,152.08,6.915]
[1719972698820,6.5727,152.15,152.09,6.5749]
[1719972699113,6.5727,152.15,152.1,0.34]
[1719972700920,6.5721,152.16,152.1,0.34]
[1719972701212,6.573,152.14,152.1,0.34]
[1719972702293,6.5735,152.13,152.1,0.34]
[1719972702893,6.573,152.14,152.1,0.34]
[1719972705012,6.5734,152.13,152.1,0.34]
[1719972706820,6.5729,152.14,152.1,0.34]
[1719972707015,6.5734,152.13,152.1,0.34]
[1719972707321,19.8,152.16,152.07,15.4458]
[1719972707510,6.5738,152.12,152.08,0.17]
[1719972707719,19.8,152.14,152.07,15.4458]
[1719972708096,6.5738,152.12,152.07,22.0216]
[1719972709222,6.5738,152.12,152.08,0.34]
[1719972710226,19.8,152.12,152.05,6.3675]
[1719972710400,6.575,152.09,152.05,6.3675]
[1719972710604,19.8,152.12,152.05,6.3675]
[1719972710605,6.5755,152.08,152.05,6.3675]
[1719972710818,36.2359,152.11,152.03,15.2688]
[1719972711321,6.5764,152.06,152.03,15.2688]
[1719972712224,6.5768,152.05,152.01,6.2195]
[1719972713420,6.5764,152.06,152.01,6.2195]
[1719972713603,19.8,152.09,152.01,6.2195]
[1719972713604,6.5758,152.08,152.02,0.34]
[1719972713808,6.5758,152.08,152.02,6.9177]
[1719972714117,6.5759,152.07,152.02,6.9177]
[1719972714421,6.5755,152.08,152.02,6.9177]
[1719972714600,6.5755,152.08,152.03,6.5775]
[1719972714805,19.8,152.11,152.04,0.34]
[1719972715023,6.5753,152.09,152.04,0.34]
[1719972715834,6.5755,152.08,152.04,0.34]
[1719972717506,6.5755,152.08,152.02,6.5779]
[1719972717507,6.5755,152.08,152.03,0.34]
[1719972718109,6.576,152.07,152.03,0.34]
[1719972718832,6.5756,152.08,152.03,0.34]
[1719972719005,6.5756,152.08,152.03,6.9174]
[1719972719206,6.5756,152.08,152.03,0.34]
[1719972720132,6.5759,152.07,152.03,0.34]
[1719972722216,6.5763,152.06,152.03,0.34]
[1719972723317,6.5763,152.06,152.01,6.5784]
[1719972723318,6.5759,152.07,152.04,0.34]
[1719972723517,6.5759,152.07,152.02,0.34]
[1719972724037,6.86957497,152.13,152.0,6.5788]
[1719972724038,23.32,152.05,152.0,6.5788]
[1719972724733,29.8969,152.05,152.0,6.5788]
[1719972725129,23.32,152.05,152.01,6.5784]
[1719972725332,23.32,152.05,151.91,100.0]
[1719972725646,23.32,152.05,151.9,23.32]
[1719972726444,23.32,152.05,151.91,2.80606265]
[1719972726606,23.32,152.05,151.98,6.5794]
[1719972726607,6.5773,152.04,151.98,6.5794]
[1719972726915,29.8968,152.05,152.0,6.5788]
[1719972727633,23.32,152.05,152.0,6.5788]
[1719972727837,23.32,152.05,152.01,6.7483]
[1719972728044,6.576,152.07,152.02,0.17]
[1719972729640,6.5765,152.06,152.02,0.17]
[1719972729817,23.32,152.05,152.02,0.17]
[1719972730239,29.8968,152.05,152.02,0.17]
[1719972730424,23.32,152.05,152.01,0.34]
[1719972730628,6.5773,152.04,152.01,0.17]
[1719972730818,29.8968,152.05,152.01,0.17]
[1719972731024,23.32,152.05,152.01,6.9185]
[1719972732139,30.19104139,152.08,152.01,0.34]
[1719972732339,23.32,152.08,152.01,0.34]
[1719972732844,23.32,152.08,152.02,6.5101]
[1719972733018,6.5759,152.07,152.03,0.34]
[1719972734536,6.5764,152.06,152.03,0.34]
[1719972734743,23.32,152.08,152.03,0.34]
[1719972734921,23.32,152.08,152.02,0.34]
[1719972735247,23.32,152.08,151.98,6.5101]
[1719972735248,43.12,152.08,152.0,6.5789]
[1719972735439,43.12,152.08,151.98,6.5101]
[1719972735440,23.32,152.05,151.98,6.5101]
[1719972735645,6.5776,152.03,151.98,13.0896]
[1719972735949,23.32,152.05,151.98,6.5101]
[1719972735950,6.5781,152.02,151.98,6.5101]
[1719972736130,6.5781,152.02,151.91,2.80606265]
[1719972736131,23.32,152.02,151.94,6.5061]
[1719972736326,6.5785,152.01,151.94,6.5061]
[1719972736529,29.8981,152.02,151.94,6.5061]
[1719972736729,23.32,152.02,151.97,6.5801]
[1719972737129,23.32,152.02,151.96,6.5805]
[1719972737130,29.898,152.02,151.96,6.5805]
[1719972737327,29.898,152.02,151.95,15.992]
[1719972737328,29.898,152.02,151.97,6.5801]
[1719972737931,23.32,152.02,151.97,6.5801]
[1719972738256,23.32,152.02,151.98,6.5797]
[1719972738941,29.8982,152.02,151.97,6.9201]
[1719972739647,16.4414,152.06,152.0,6.5788]
[1719972739648,23.32,152.03,152.0,6.5788]
[1719972739852,23.32,152.03,151.99,6.9193]
[1719972740155,23.32,152.03,151.99,0.17]
[1719972740364,23.32,152.03,152.0,0.17]
[1719972740663,23.32,152.03,151.99,6.7493]
[1719972740831,23.32,152.03,152.0,0.17]
[1719972743137,6.18398303,152.09,152.0,0.17]
[1719972743454,23.32,152.09,152.0,0.17]
[1719972743630,23.32,152.09,152.03,6.5773]
[1719972743832,23.32,152.09,152.04,0.34]
[1719972743833,6.576,152.07,152.04,0.34]
[1719972744237,6.576,152.07,152.04,0.17]
[1719972744443,6.5763,152.06,152.03,0.34]
[1719972744946,6.5759,152.07,152.03,0.34]
[1719972746149,6.5756,152.08,152.03,0.34]
[1719972746450,6.576,152.07,152.03,0.34]
[1719972746627,23.32,152.06,152.03,0.34]
[1719972747040,23.32,152.06,152.02,0.34]
[1719972747253,29.8964,152.06,152.02,0.34]
[1719972747939,23.32,152.06,151.99,22.3199]
[1719972748141,23.32,152.06,152.0,0.34]
[1719972748537,6.5768,152.05,152.0,0.34]
[1719972748854,6.5768,152.05,152.0,6.9188]
[1719972749054,43.12,152.06,151.99,15.8574]
[1719972749353,29.898,152.03,151.98,6.5797]
[1719972751253,29.898,152.03,151.99,0.17]
[1719972751553,29.898,152.03,151.99,0.34]
[1719972752459,23.32,152.03,151.99,0.34]
[1719972752843,29.8977,152.03,151.99,0.34]
[1719972753362,23.32,152.03,151.99,6.9193]
[1719972753760,23.32,152.03,151.99,0.34]
[1719972755129,29.8977,152.03,151.99,0.34]
[1719972755940,6.578,152.02,151.99,0.34]
[1719972756141,23.32,152.0,151.94,15.5426]
[1719972756350,23.32,152.0,151.96,6.5806]
[1719972757651,23.32,152.0,151.97,6.7502]
[1719972757854,23.32,152.0,151.97,6.9202]
[1719972758161,29.8976,152.03,151.98,6.5797]
[1719972758354,29.8976,152.03,151.99,0.17]
[1719972758845,6.5781,152.02,151.99,0.34]
[1719972759048,6.5781,152.02,151.99,0.17]
[1719972759438,6.5781,152.02,151.98,0.34]
[1719972759860,23.32,152.03,151.98,0.34]
[1719972760067,6.5786,152.01,151.98,0.34]
[1719972760445,6.579,152.0,151.98,0.34]
[1719972760652,29.899,152.0,151.98,0.34]
[1719972761050,29.899,152.0,151.98,0.17]
[1719972761765,29.899,152.0,151.95,6.5807]
[1719972762063,29.899,152.0,151.96,0.34]
[1719972764563,19.8,151.98,151.91,8.08977347]
[1719972764748,23.32,151.95,151.91,2.80606265]
[1719972765156,23.32,151.95,151.91,6.5827]
[1719972765864,29.9011,151.95,151.9,6.5832]
[1719972766371,23.32,151.95,151.91,6.5827]
[1719972767367,23.32,151.95,151.92,0.34]
[1719972767866,29.9011,151.95,151.92,0.34]
[1719972768045,23.32,151.95,151.85,26.69226507]
[1719972768245,23.32,151.95,151.85,29.49943647]
[1719972769358,23.32,151.95,151.86,3.14698655]
[1719972769558,23.32,151.95,151.9,6.583]
[1719972769773,23.32,151.95,151.91,0.34]
[1719972770147,23.32,151.95,151.91,6.9227]
[1719972770772,23.32,151.95,151.91,0.34]
[1719972771267,23.26790525,151.99,151.91,0.34]
[1719972771449,6.5802,151.97,151.91,0.34]
[1719972772654,13.48590525,151.99,151.91,0.34]
[1719972772959,13.48590525,151.99,151.93,6.5818]
[1719972773164,6.58,151.98,151.94,0.34]
[1719972775077,13.48560525,151.99,151.94,6.9214]
[1719972775474,6.5794,151.99,151.94,6.9214]
[1719972777149,45.57530525,152.03,151.94,0.34]
[1719972777470,45.57530525,152.03,151.96,6.5803]
[1719972777663,45.57530525,152.03,151.97,0.34]
[1719972777866,6.90620525,152.03,151.97,0.34]
[1719972778056,6.5775,152.04,151.97,0.34]
[1719972778256,23.32,152.05,152.0,6.5789]
[1719972778456,23.32,152.05,152.01,6.5783]
[1719972778657,23.32,152.05,152.02,0.34]
[1719972778875,26.70620525,152.07,152.02,0.34]
[1719972779255,6.90620525,152.07,152.02,0.34]
[1719972779770,6.5764,152.06,152.02,0.34]
[1719972780452,6.576,152.07,152.02,6.918]
[1719972780975,23.32,152.08,152.02,0.34]
[1719972781275,6.5768,152.05,152.01,0.34]
[1719972782053,6.5764,152.06,152.01,0.34]
[1719972782254,6.5764,152.06,152.01,6.9183]
[1719972782578,6.8687706,152.09,152.01,0.34]
[1719972782780,29.8957,152.08,152.03,6.5774]
[1719972782961,29.8957,152.08,152.04,0.34]
[1719972783286,6.5763,152.06,152.01,6.5784]
[1719972783495,6.5763,152.06,152.02,0.34]
[1719972783659,6.5759,152.07,152.02,6.918]
[1719972784483,23.32,152.08,152.02,0.34]
[1719972784657,23.32,152.08,152.01,0.34]
[1719972784857,29.8959,152.08,152.03,6.7475]
[1719972785058,29.8959,152.08,152.04,0.17]
[1719972785373,29.8959,152.08,152.04,0.34]
[1719972786078,6.5759,152.07,152.04,0.34]
[1719972786257,29.8955,152.08,152.03,6.9176]
[1719972786770,23.32,152.08,152.04,6.5771]
[1719972786983,23.32,152.08,152.05,6.5766]
[1719972787159,23.32,152.08,152.06,0.34]
[1719972787478,23.32,152.08,152.04,6.5771]
[1719972787681,23.32,152.08,152.05,0.34]
[1719972790757,6.576,152.07,152.02,6.578]
[1719972790973,6.576,152.07,152.03,0.34]
[1719972791362,29.8955,152.08,152.03,0.34]
[1719972791715,29.8955,152.08,152.03,6.9176]
[1719972792296,23.32,152.08,152.03,0.34]
[1719972792592,23.32,152.08,152.02,0.34]
[1719972792791,23.32,152.08,152.04,6.577]
[1719972792970,23.32,152.08,152.05,6.9166]
[1719972793170,23.32,152.08,152.05,6.5766]
[1719972793365,23.32,152.08,152.04,6.917]
[1719972794384,30.22620525,152.11,152.04,0.34]
[1719972794660,6.5741,152.11,152.06,6.5762]
[1719972794890,6.5741,152.11,152.07,0.34]
[1719972796088,35.4918,152.12,152.01,6.6266]
[1719972796276,6.5751,152.09,152.04,6.5768]
[1719972796598,29.8947,152.1,152.05,6.9167]
[1719972796768,29.8947,152.1,152.06,0.34]
[1719972798294,23.32,152.1,152.06,6.9162]
[1719972799794,23.32,152.1,152.06,0.34]
[1719972801476,23.32,152.1,152.06,6.9163]
[1719972803378,23.32,152.1,152.07,6.5758]
[1719972803580,23.32,152.1,152.08,0.34]
[1719972803804,11.65,152.09,152.08,0.34]
[1719972804169,11.65,152.09,152.08,0.17]
[1719972804375,11.65,152.09,152.07,0.34]
[1719972804589,11.65,152.08,152.07,0.34]
[1719972806883,6.5742,152.11,152.07,0.34]
[1719972807093,11.65,152.08,152.07,0.34]
[1719972808994,6.5742,152.11,152.07,0.34]
[1719972809197,11.65,152.08,152.07,0.34]
[1719972810610,11.65,152.08,152.06,0.34]
[1719972811296,11.65,152.07,152.06,0.34]
[1719972811615,11.65,152.07,152.05,0.34]
[1719972811788,6.5751,152.09,152.05,0.34]
[1719972811991,11.65,152.06,152.05,0.34]
[1719972812517,11.65,152.06,152.05,6.9167]
[1719972812712,11.65,152.06,152.05,0.34]
[1719972812918,6.5752,152.09,152.05,0.34]
[1719972813089,6.5752,152.09,152.05,6.9167]
[1719972813090,11.65,152.06,152.05,6.9167]
[1719972814302,6.5742,152.11,152.06,6.5759]
[1719972814488,11.65,152.08,152.07,0.34]
[1719972816611,6.5742,152.11,152.07,0.34]
[1719972816808,11.65,152.08,152.07,0.34]
[1719972817187,11.65,152.08,152.07,0.17]
[1719972818319,11.65,152.08,152.06,0.17]
[1719972818517,11.65,152.07,152.05,0.17]
[1719972818822,11.65,152.06,152.05,0.34]
[1719972819385,11.65,152.06,152.05,6.9167]
[1719972822896,6.5743,152.11,152.06,6.5762]
[1719972823100,6.5743,152.11,152.07,0.34]
[1719972823310,11.65,152.08,152.07,0.34]
[1719972825223,19.8,152.13,152.07,6.9159]
[1719972825520,11.65,152.08,152.07,6.9159]
[1719972825723,6.5742,152.11,152.07,0.34]
[1719972825892,11.65,152.08,152.07,0.34]
[1719972826923,11.65,152.08,152.06,0.34]
[1719972827091,11.65,152.07,152.06,0.34]
[1719972828513,11.65,152.07,152.06,6.9163]
[1719972829117,11.65,152.07,152.06,0.34]
[1719972829429,11.65,152.07,152.0,16.3506]
[1719972829724,11.65,152.03,152.02,6.5779]
[1719972829893,11.65,152.03,152.0,16.3506]
[1719972829894,11.65,152.04,152.03,6.5776]
[1719972831709,11.65,152.04,152.03,6.7476]
[1719972831904,11.65,152.04,152.03,6.9176]
[1719972832926,53.1756,152.08,152.03,6.9176]
[1719972833110,53.1756,152.08,152.04,6.9172]
[1719972833300,11.65,152.05,152.04,6.9172]
[1719972833497,11.65,152.05,152.04,0.34]
[1719972834520,11.65,152.05,152.04,0.17]
[1719972834914,11.65,152.05,152.03,6.7475]
[1719972834915,11.65,152.05,152.03,0.17]
[1719972835220,11.65,152.04,152.01,6.5784]
[1719972835430,19.8,152.06,151.96,28.0044]
[1719972835731,11.65,151.98,151.93,6.6333]
[1719972835926,6.5782,152.02,151.97,6.5802]
[1719972836226,11.65,151.98,151.97,6.5802]
[1719972838201,15.5765,152.06,151.97,11.82]
[1719972838407,15.5765,152.06,152.03,6.5776]
[1719972838625,11.65,152.04,152.03,6.5776]
[1719972838796,11.65,152.04,152.03,6.9176]
[1719972838996,46.6,152.08,152.04,6.5771]
[1719972839199,11.65,152.05,152.04,6.5771]
[1719972839432,11.65,152.05,152.04,6.9171]
[1719972839725,11.65,152.05,152.04,0.34]
[1719972839932,42.46411699,152.1,152.04,0.34]
[1719972840428,42.46411699,152.1,152.05,0.34]
[1719972840627,11.65,152.06,152.05,0.34]
[1719972841635,6.86824551,152.12,152.05,0.34]
[1719972841841,11.65,152.09,152.06,0.17]
[1719972842003,11.65,152.09,152.04,0.34]
[1719972842201,11.65,152.09,152.06,6.5762]
[1719972842521,6.5741,152.11,152.07,0.34]
[1719972842707,11.65,152.09,152.07,0.34]
[1719972843123,11.65,152.08,152.07,0.34]
[1719972843322,15.4338,152.14,152.07,0.34]
[1719972843522,22.0069,152.14,152.09,6.5747]
[1719972843731,22.0071,152.14,152.1,0.34]
[1719972843937,11.65,152.11,152.1,0.34]
[1719972846027,15.4338,152.14,152.1,0.34]
[1719972846028,13.47641699,152.15,152.1,0.34]
[1719972846329,11.65,152.11,152.1,0.34]
[1719972846916,13.47681699,152.15,152.1,0.34]
[1719972847305,11.65,152.12,152.1,0.34]
[1719972848338,11.65,152.11,152.1,0.34]
[1719972850632,6.90401699,152.15,152.13,6.5729]
[1719972850840,22.4976,152.18,152.14,0.34]
[1719972851023,11.65,152.15,152.14,0.34]
[1719972852754,6.86804759,152.19,152.14,0.34]
[1719972852926,11.65,152.18,152.14,0.34]
[1719972853126,22.1119,152.21,152.14,0.34]
[1719972853127,15.5417,152.21,152.14,0.34]
[1719972853334,11.65,152.18,152.14,0.34]
[1719972853722,22.1116,152.21,152.14,0.34]
[1719972854223,15.5417,152.21,152.14,0.34]
[1719972854466,6.5695,152.22,152.14,0.34]
[1719972854626,29.8391,152.23,152.14,0.34]
[1719972855930,6.5695,152.22,152.14,0.34]
[1719972857237,6.5691,152.23,152.14,0.34]
[1719972857548,37.0351955,152.24,152.14,0.34]
[1719972857735,37.0351955,152.24,152.15,0.17]
[1719972857736,6.86117851,152.24,152.15,0.17]
[1719972857929,6.86117851,152.24,152.16,2.80145227]
[1719972858125,6.86117851,152.24,152.17,0.34]
[1719972858432,6.86117851,152.24,152.18,2.80108409]
[1719972858749,6.86117851,152.24,152.19,0.34]
[1719972860334,0.3033888,152.25,152.19,0.34]
[1719972867666,6.8714888,152.25,152.19,0.34]
[1719972869469,0.3033888,152.25,152.19,0.34]
[1719972869763,6.5695,152.22,152.14,15.3382]
[1719972870141,23.27,152.24,152.14,15.3382]
[1719972870761,23.27,152.24,152.15,0.17]
[1719972870945,23.27,152.24,152.15,0.34]
[1719972871756,6.569,152.23,152.15,0.34]
[1719972872369,29.8387,152.24,152.15,0.34]
[1719972872972,0.3033888,152.25,152.16,2.80145227]
[1719972873173,0.3033888,152.25,152.17,0.34]
[1719972873382,0.3033888,152.25,152.18,21.7161]
[1719972873557,0.3033888,152.25,152.19,0.34]
[1719972874563,0.3033888,152.25,152.2,2.80071601]
[1719972874750,0.3033888,152.25,152.21,0.34]
[1719972880579,0.3033888,152.25,152.2,2.80071601]
[1719972881805,0.3033888,152.25,152.21,0.17]
[1719972881960,0.3033888,152.25,152.21,0.34]
[1719972885755,0.3033888,152.25,152.24,11.62]
[1719972885959,0.3033888,152.25,152.24,11.96]
[1719972886161,0.3033888,152.25,152.24,27.3287]
[1719972886659,22.1654,152.33,152.24,27.3287]
[1719972886859,11.62,152.31,152.25,11.96]
[1719972887387,11.62,152.3,152.25,11.96]
[1719972887675,11.62,152.3,152.22,2.80034803]
[1719972887676,11.62,152.26,152.22,2.80034803]
[1719972887853,6.5671,152.28,152.22,2.80034803]
[1719972888458,6.5673,152.27,152.22,2.80034803]
[1719972888658,6.5673,152.27,152.2,16.6355]
[1719972888879,6.5677,152.26,152.2,16.6355]
[1719972889777,19.8,152.26,152.16,16.113]
[1719972889990,6.569,152.24,152.16,16.113]
[1719972891577,6.5694,152.22,152.14,6.0615]
[1719972892175,6.5691,152.23,152.14,6.0615]
[1719972892884,6.5691,152.23,152.15,0.34]
[1719972893084,6.5686,152.24,152.15,0.34]
[1719972894967,49.6182,152.25,152.15,0.34]
[1719972895170,6.5687,152.24,152.15,0.34]
[1719972895483,49.6182,152.25,152.15,0.34]
[1719972896985,49.6182,152.25,152.15,3.14163639]
[1719972897863,26.3682,152.25,152.15,3.14163639]
[1719972898582,46.39771699,152.27,152.16,16.1149]
[1719972898779,46.39771699,152.27,152.17,0.34]
[1719972898780,6.5677,152.26,152.17,0.34]
[1719972898974,6.5682,152.25,152.17,0.34]
[1719972899174,6.5677,152.26,152.17,0.34]
[1719972899377,19.8,152.28,152.17,0.34]
[1719972899378,15.478,152.32,152.19,16.1149]
[1719972899565,15.478,152.32,152.2,0.34]
[1719972899765,6.566,152.3,152.2,0.34]
[1719972900081,15.478,152.32,152.2,0.34]
[1719972900257,22.0431,152.32,152.2,0.34]
[1719972900463,6.5651,152.32,152.21,2.80053201]
[1719972900662,6.5651,152.32,152.22,0.34]
[1719972900865,6.5655,152.31,152.23,2.80016407]
[1719972901066,6.5651,152.32,152.24,0.34]
[1719972901281,29.8147,152.33,152.24,0.34]
[1719972901459,23.25,152.3,152.23,2.80016407]
[1719972902073,43.05,152.3,152.23,2.80016407]
[1719972902275,19.8,152.26,152.19,16.1149]
[1719972902499,29.8176,152.27,152.18,6.5407]
[1719972902782,23.25,152.27,152.18,6.5407]
[1719972902966,23.25,152.27,152.19,2.80090004]
[1719972903963,6.5664,152.29,152.19,2.80090004]
[1719972904271,6.5668,152.28,152.19,2.80090004]
[1719972904485,6.5668,152.28,152.2,0.34]
[1719972904871,6.5664,152.29,152.2,0.34]